fUSD/lending_fUSD_20241202
["ID","MTS","AMOUNT","RATE_DAILY","PERIOD"]
[343985887,1733169633876,-500.0,0.00026095,120]
[343985888,1733169633927,-1167.31,0.00026095,120]
[343985889,1733169633981,-1639.63,0.00026095,120]
[343985890,1733169634032,-1353.18,0.00026095,120]
[343985891,1733169634082,-500.0,0.00026095,120]
[343985892,1733169634134,-500.0,0.00026095,120]
[343985893,1733169634183,-500.0,0.00026095,120]
[343985894,1733169634236,-500.0,0.00026095,120]
[343985895,1733169634293,-500.0,0.00026095,120]
[343985896,1733169634343,-500.0,0.00026095,30]
[343985897,1733169634395,-500.0,0.00026095,120]
[343985898,1733169634448,-500.0,0.00026095,120]
[343985899,1733169634499,-500.0,0.00026095,120]
[343985900,1733169634551,-500.0,0.00026095,120]
[343985901,1733169634605,-1895.07,0.00026095,120]
[343985902,1733169634659,-558.98,0.00026095,120]
[343985903,1733169634709,-500.0,0.00026095,120]
[343985904,1733169634758,-500.0,0.00026095,120]
[343985905,1733169634806,-500.0,0.00026095,120]
[343985906,1733169634855,-3511.18,0.00026095,120]
[343985907,1733169634905,-652.62,0.00026095,120]
[343985908,1733169634954,-500.0,0.00026095,30]
[343985909,1733169635002,-500.0,0.00026095,120]
[343985910,1733169635049,-1039.8,0.00026095,120]
[343985911,1733169635096,-500.0,0.00026095,120]
[343985912,1733169635142,-1166.82,0.00026095,120]
[343985913,1733169635188,-500.0,0.00026095,120]
[343985914,1733169635236,-500.0,0.00026095,120]
[343985915,1733169635284,-585.74,0.00026095,120]
[343985916,1733169635330,-500.0,0.00026095,120]
[343985917,1733169635378,-500.0,0.00026095,120]
[343985918,1733169635425,-500.0,0.00026095,120]
[343985919,1733169635475,-500.0,0.00026095,120]
[343985920,1733169635525,-519.91,0.00026095,120]
[343985921,1733169635577,-500.0,0.00026095,120]
[343985922,1733169635627,-500.0,0.00026095,120]
[343985923,1733169635676,-500.0,0.00026095,120]
[343985924,1733169635724,-750.84,0.00026095,120]
[343985925,1733169635772,-500.0,0.00026095,120]
[343985926,1733169635820,-516.45,0.00026095,120]
[343985927,1733169635869,-500.0,0.00026095,120]
[343985928,1733169635917,-1160.34,0.00026095,120]
[343985929,1733169635973,-500.0,0.00026095,120]
[343985930,1733169636023,-500.0,0.00026095,30]
[343985931,1733169636073,-1556.7,0.00026095,120]
[343985932,1733169636122,-500.0,0.00026095,120]
[343985933,1733169636170,-3243.18,0.00026095,120]
[343985934,1733169636217,-500.0,0.00026095,120]
[343985935,1733169636265,-630.27,0.00026095,120]
[343985936,1733169636313,-1015.59,0.00026095,120]
[343985937,1733169636362,-1761.48,0.00026095,120]
[343985938,1733169636412,-954.34,0.00026095,120]
[343985939,1733169636460,-500.0,0.00026095,120]
[343985940,1733169636509,-500.0,0.00026095,120]
[343985941,1733169636558,-500.0,0.00026095,120]
[343985942,1733169636611,-1076.04,0.00026095,120]
[343985943,1733169636660,-1860.62,0.00026095,120]
[343985944,1733169636708,-2087.05,0.00026095,120]
[343985945,1733169636756,-500.0,0.00026095,120]
[343985946,1733169636803,-1700.41,0.00026095,120]
[343985947,1733169636850,-500.0,0.00026095,120]
[343985948,1733169636895,-1825.7,0.00026095,30]
[343985949,1733169636941,-500.0,0.00026095,120]
[343985950,1733169636989,-683.55,0.00026095,120]
[343985951,1733169637038,-527.82,0.00026095,120]
[343985952,1733169637085,-531.21,0.00026095,120]
[343985953,1733169637131,-2632.15,0.00026095,120]
[343985954,1733169637178,-761.54,0.00026095,120]
[343985955,1733169637227,-1866.97,0.00026095,120]
[343985956,1733169637272,-500.0,0.00026095,120]
[343985957,1733169637318,-500.0,0.00026095,120]
[343985958,1733169637365,-3090.51,0.00026095,120]
[343985959,1733169637411,-500.0,0.00026095,120]
[343985960,1733169637463,-500.0,0.00026095,120]
[343985961,1733169637510,-500.0,0.00026095,120]
[343985962,1733169637559,-500.0,0.00026095,120]
[343985963,1733169637614,-1954.18,0.00026095,120]
[343985964,1733169637662,-1364.22,0.00026095,120]
[343985965,1733169637708,-558.83,0.00026095,120]
[343985966,1733169637755,-500.0,0.00026095,120]
[343985967,1733169638035,-500.0,0.00026095,120]
[343985968,1733169638082,-1251.07,0.00026095,120]
[343985969,1733169638130,-1140.3,0.00026095,120]
[343985970,1733169638178,-500.0,0.00026095,120]
[343985971,1733169638225,-1150.41,0.00026095,120]
[343985972,1733169638273,-1074.21,0.00026095,120]
[343985973,1733169638321,-745.91,0.00026095,120]
[343985974,1733169638370,-500.0,0.00026095,120]
[343985975,1733169638418,-500.0,0.00026095,120]
[343985976,1733169638465,-1444.05,0.00026095,120]
[343985977,1733169638512,-500.0,0.00026095,120]
[343985978,1733169638561,-500.0,0.00026095,120]
[343985979,1733169638611,-565.51,0.00026095,120]
[343985980,1733169638658,-500.0,0.00026095,120]
[343985981,1733169638706,-687.16,0.00026095,120]
[343985982,1733169638755,-601.32641388,0.00026095,120]
[343985983,1733169638801,-500.0,0.00026095,120]
[343985984,1733169638849,-500.0,0.00026095,120]
[343985985,1733169638897,-500.0,0.00026095,120]
[343985986,1733169638943,-500.0,0.00026095,120]
[343985987,1733169638993,-930.59,0.00026095,120]
[343985988,1733169639039,-500.0,0.00026095,120]
[343985989,1733169639085,-2396.75,0.00026095,120]
[343985990,1733169639132,-500.0,0.00026095,120]
[343985991,1733169639178,-1097.58,0.00026095,120]
[343985992,1733169639224,-500.0,0.00026095,120]
[343985993,1733169639271,-500.0,0.00026095,120]
[343985994,1733169639320,-500.0,0.00026095,120]
[343985995,1733169639368,-500.0,0.00026095,120]
[343985996,1733169639418,-520.18,0.00026095,120]
[343985997,1733169639466,-500.0,0.00026095,120]
[343985998,1733169639518,-868.85,0.00026095,120]
[343985999,1733169639570,-500.0,0.00026095,120]
[343986000,1733169639619,-2000.21,0.00026095,120]
[343986001,1733169639667,-1114.97,0.00026095,120]
[343986002,1733169639715,-500.0,0.00026095,120]
[343986003,1733169639765,-1071.54,0.00026095,120]
[343986004,1733169639812,-500.0,0.00026095,120]
[343986005,1733169639859,-500.0,0.00026095,120]
[343986006,1733169639906,-500.0,0.00026095,120]
[343986007,1733169639956,-3096.03,0.00026095,120]
[343986008,1733169640005,-1662.47,0.00026095,120]
[343986009,1733169640051,-1377.65,0.00026095,120]
[343986010,1733169640099,-500.0,0.00026095,120]
[343986011,1733169640146,-2217.05,0.00026095,120]
[343986012,1733169640192,-1306.98,0.00026095,120]
[343986013,1733169640241,-500.0,0.00026095,120]
[343986014,1733169640290,-500.0,0.00026095,120]
[343986015,1733169640339,-739.43,0.00026095,120]
[343986016,1733169640386,-500.0,0.00026095,120]
[343986017,1733169640432,-995.51,0.00026095,120]
[343986018,1733169640478,-547.62,0.00026095,120]
[343986019,1733169640523,-500.0,0.00026095,120]
[343986020,1733169640574,-1079.3,0.00026095,120]
[343986021,1733169640622,-500.0,0.00026095,120]
[343986022,1733169640668,-1744.11,0.00026095,120]
[343986023,1733169640714,-500.0,0.00026095,120]
[343986024,1733169640761,-500.0,0.00026095,120]
[343986025,1733169640809,-500.0,0.00026095,120]
[343986026,1733169640856,-611.98,0.00026095,120]
[343986027,1733169640903,-500.0,0.00026095,120]
[343986028,1733169640950,-2533.32,0.00026095,120]
[343986029,1733169640999,-1516.32,0.00026095,120]
[343986030,1733169641046,-500.0,0.00026095,120]
[343986031,1733169641094,-1653.35,0.00026095,120]
[343986032,1733169641139,-500.0,0.00026095,30]
[343986033,1733169641186,-686.05,0.00026095,120]
[343986034,1733169641235,-801.48,0.00026095,120]
[343986035,1733169641282,-500.0,0.00026095,120]
[343986036,1733169641328,-548.73582537,0.00026095,120]
[343986037,1733169641376,-522.08555996,0.00026095,120]
[343986038,1733169641423,-500.0,0.00026095,120]
[343986039,1733169641472,-538.16,0.00026095,120]
[343986040,1733169641521,-500.0,0.00026095,120]
[343986041,1733169641570,-1354.41,0.00026095,120]
[343986042,1733169641618,-560.45506583,0.00026095,120]
[343986043,1733169641665,-969.1,0.00026095,120]
[343986044,1733169641711,-2609.7,0.00026095,120]
[343986045,1733169641756,-500.0,0.00026095,120]
[343986046,1733169641803,-2510.83,0.00026095,120]
[343986047,1733169641848,-500.0,0.00026095,120]
[343986048,1733169641893,-500.0,0.00026095,120]
[343986049,1733169641940,-1407.19,0.00026095,120]
[343986050,1733169641991,-500.0,0.00026095,120]
[343986051,1733169642038,-500.0,0.00026095,120]
[343986052,1733169642088,-524.65,0.00026095,120]
[343986053,1733169642135,-2128.74,0.00026095,120]
[343986054,1733169642181,-624.33,0.00026095,120]
[343986055,1733169642228,-500.0,0.00026095,120]
[343986056,1733169642275,-500.0,0.00026095,120]
[343986057,1733169642320,-1988.98,0.00026095,120]
[343986058,1733169642367,-1527.24,0.00026095,120]
[343986059,1733169642417,-500.0,0.00026095,120]
[343986060,1733169642465,-500.0,0.00026095,120]
[343986061,1733169642749,-1500.0,0.00026095,120]
[343986062,1733169642798,-500.0,0.00026095,120]
[343986063,1733169642847,-500.0,0.00026095,120]
[343986064,1733169642896,-1461.95,0.00026095,120]
[343986065,1733169642943,-772.36,0.00026095,120]
[343986066,1733169642995,-1591.59,0.00026095,120]
[343986067,1733169643044,-500.0,0.00026095,90]
[343986068,1733169643091,-1905.7,0.00026095,120]
[343986069,1733169643139,-500.0,0.00026095,120]
[343986070,1733169643188,-679.92,0.00026095,120]
[343986071,1733169643239,-2183.1,0.00026095,120]
[343986072,1733169643287,-1191.99,0.00026095,120]
[343986073,1733169643334,-500.0,0.00026095,120]
[343986074,1733169643383,-531.75,0.00026095,120]
[343986075,1733169643430,-1048.36,0.00026095,120]
[343986076,1733169643476,-500.0,0.00026095,120]
[343986077,1733169643526,-716.67,0.00026095,120]
[343986078,1733169643577,-500.0,0.00026095,120]
[343986079,1733169643626,-500.0,0.00026095,120]
[343986080,1733169643673,-500.0,0.00026095,120]
[343986081,1733169643725,-2582.23,0.00026095,120]
[343986082,1733169643775,-652.11,0.00026095,120]
[343986083,1733169643828,-2789.77,0.00026095,120]
[343986084,1733169643877,-500.0,0.00026095,120]
[343986085,1733169643924,-500.0,0.00026095,120]
[343986086,1733169643968,-500.0,0.00026095,120]
[343986087,1733169644017,-533.473756,0.00026095,120]
[343986088,1733169644068,-2329.9,0.00026095,120]
[343986089,1733169644117,-1412.98,0.00026095,120]
[343986090,1733169644166,-870.74,0.00026095,120]
[343986091,1733169644214,-150.0,0.00026095,120]
[343986092,1733169644263,-500.0,0.00026095,120]
[343986093,1733169644312,-500.0,0.00026095,120]
[343986094,1733169644362,-2107.48,0.00026095,120]
[343986095,1733169644414,-506.71,0.00026095,120]
[343986096,1733169644465,-2841.6,0.00026095,120]
[343986097,1733169644518,-500.0,0.00026095,120]
[343986098,1733169644570,-500.0,0.00026095,120]
[343986099,1733169644623,-500.0,0.00026095,120]
[343986100,1733169644672,-521.14,0.00026095,120]
[343986101,1733169644721,-557.64,0.00026095,120]
[343986102,1733169644771,-500.0,0.00026095,120]
[343986103,1733169644819,-3110.54,0.00026095,120]
[343986104,1733169644870,-500.0,0.00026095,120]
[343986105,1733169644918,-500.0,0.00026095,120]
[343986106,1733169644965,-500.0,0.00026095,120]
[343986107,1733169645013,-3423.36,0.00026095,120]
[343986108,1733169645061,-1087.36,0.00026095,120]
[343986109,1733169645109,-541.1,0.00026095,120]
[343986110,1733169645156,-500.0,0.00026095,120]
[343986111,1733169645205,-500.0,0.00026095,120]
[343986112,1733169645254,-500.0,0.00026095,120]
[343986113,1733169645302,-500.0,0.00026095,120]
[343986114,1733169645351,-2801.51,0.00026095,120]
[343986115,1733169645399,-5000.0,0.00026095,120]
[343986116,1733169645447,-500.0,0.00026095,120]
[343986117,1733169645498,-506.95,0.00026095,120]
[343986118,1733169645548,-500.0,0.00026095,120]
[343986119,1733169645598,-713.56,0.00026095,120]
[343986120,1733169645650,-643.2,0.00026095,120]
[343986121,1733169645700,-1200.13,0.00026095,120]
[343986122,1733169645763,-2067.91,0.00026095,120]
[343986123,1733169645811,-4184.83,0.00026095,120]
[343986124,1733169645859,-500.0,0.00026095,120]
[343986125,1733169645907,-605.31,0.00026095,120]
[343986126,1733169645957,-500.0,0.00026095,120]
[343986127,1733169646005,-2492.48,0.00026095,120]
[343986128,1733169646056,-500.0,0.00026095,120]
[343986129,1733169646114,-1596.09,0.00026095,120]
[343986130,1733169646162,-1455.97,0.00026095,120]
[343986131,1733169646211,-500.0,0.00026095,120]
[343986132,1733169646258,-500.0,0.00026095,120]
[343986133,1733169646305,-1126.49,0.00026095,120]
[343986134,1733169646354,-1384.92,0.00026095,120]
[343986135,1733169646404,-500.0,0.00026095,120]
[343986136,1733169646453,-1057.95,0.00026095,120]
[343986137,1733169646503,-500.0,0.00026095,120]
[343986138,1733169646554,-500.0,0.00026095,120]
[343986139,1733169646605,-1043.2,0.00026095,120]
[343986140,1733169646658,-500.0,0.00026095,120]
[343986141,1733169646711,-972.55,0.00026095,120]
[343986142,1733169646757,-808.24,0.00026095,120]
[343986143,1733169646804,-535.74,0.00026095,120]
[343986144,1733169646856,-976.93,0.00026095,120]
[343986145,1733169646902,-1114.71,0.00026095,120]
[343986146,1733169646946,-500.0,0.00026095,120]
[343986147,1733169646998,-500.0,0.00026095,120]
[343986148,1733169647044,-500.0,0.00026095,120]
[343986149,1733169647090,-500.0,0.00026095,120]
[343986150,1733169647136,-500.0,0.00026095,120]
[343986151,1733169647183,-500.0,0.00026095,120]
[343986152,1733169647250,-500.0,0.00026095,120]
[343986153,1733169647304,-500.0,0.00026095,120]
[343986154,1733169647739,-500.0,0.00026095,120]
[343986155,1733169647790,-500.0,0.00026095,120]
[343986156,1733169647838,-830.72,0.00026095,120]
[343986157,1733169647886,-643.72,0.00026095,120]
[343986158,1733169647934,-500.0,0.00026095,120]
[343986159,1733169647988,-595.55,0.00026095,120]
[343986160,1733169648043,-2828.02,0.00026095,120]
[343986161,1733169648096,-1861.56,0.00026095,120]
[343986162,1733169648145,-500.0,0.00026095,120]
[343986163,1733169648195,-887.04,0.00026095,120]
[343986164,1733169648251,-500.0,0.00026095,120]
[343986165,1733169648302,-500.0,0.00026095,120]
[343986166,1733169648352,-500.0,0.00026095,120]
[343986167,1733169648404,-500.0,0.00026095,120]
[343986168,1733169648456,-568.87,0.00026095,120]
[343986169,1733169648505,-500.0,0.00026095,120]
[343986170,1733169648555,-639.95,0.00026095,120]
[343986171,1733169648609,-1962.72,0.00026095,120]
[343986172,1733169648661,-500.0,0.00026095,120]
[343986173,1733169648712,-1727.84,0.00026095,120]
[343986174,1733169648760,-1487.29,0.00026095,120]
[343986175,1733169648809,-500.0,0.00026095,120]
[343986176,1733169648861,-716.14,0.00026095,120]
[343986177,1733169648913,-2175.69,0.00026095,120]
[343986178,1733169648963,-500.0,0.00026095,120]
[343986179,1733169649013,-500.0,0.00026095,120]
[343986180,1733169649062,-624.76,0.00026095,120]
[343986181,1733169649110,-500.0,0.00026095,120]
[343986182,1733169649159,-780.96,0.00026095,120]
[343986183,1733169649211,-2630.4,0.00026095,120]
[343986184,1733169649261,-500.0,0.00026095,120]
[343986185,1733169649310,-500.0,0.00026095,120]
[343986186,1733169649360,-635.32,0.00026095,120]
[343986187,1733169649411,-500.0,0.00026095,120]
[343986188,1733169649464,-3678.57,0.00026095,120]
[343986189,1733169649516,-500.0,0.00026095,120]
[343986190,1733169649566,-522.5,0.00026095,120]
[343986191,1733169649620,-857.61,0.00026095,120]
[343986192,1733169649681,-620.34,0.00026095,120]
[343986193,1733169649732,-500.0,0.00026095,120]
[343986194,1733169649783,-500.0,0.00026095,120]
[343986195,1733169649833,-500.0,0.00026095,120]
[343986196,1733169649882,-1084.35,0.00026095,120]
[343986197,1733169649931,-2661.6,0.00026095,120]
[343986198,1733169649981,-500.0,0.00026095,120]
[343986199,1733169650030,-500.0,0.00026095,120]
[343986200,1733169650078,-500.0,0.00026095,120]
[343986201,1733169650124,-1941.3,0.00026095,120]
[343986202,1733169650172,-2961.65,0.00026095,120]
[343986203,1733169650223,-500.0,0.00026095,120]
[343986204,1733169650262,-601.13,0.00026095,120]
[343986205,1733169650301,-500.0,0.00026095,120]
[343986206,1733169650340,-500.0,0.00026095,120]
[343986207,1733169650379,-982.36,0.00026095,120]
[343986208,1733169650417,-500.0,0.00026095,120]
[343986209,1733169650457,-1085.53,0.00026095,120]
[343986210,1733169650497,-1068.48,0.00026095,120]
[343986211,1733169650537,-853.72,0.00026095,120]
[343986212,1733169650577,-500.0,0.00026095,120]
[343986213,1733169650616,-2476.13,0.00026095,120]
[343986214,1733169650656,-500.0,0.00026095,120]
[343986215,1733169650694,-3520.06,0.00026095,120]
[343986216,1733169650738,-577.63,0.00026095,120]
[343986217,1733169650778,-500.0,0.00026095,120]
[343986218,1733169650816,-500.0,0.00026095,120]
[343986219,1733169650853,-780.94,0.00026095,120]
[343986220,1733169650892,-962.0,0.00026095,120]
[343986221,1733169650929,-500.0,0.00026095,120]
[343986222,1733169650966,-3307.98,0.00026095,120]
[343986223,1733169651003,-500.0,0.00026095,120]
[343986224,1733169651041,-500.0,0.00026095,120]
[343986225,1733169651079,-500.0,0.00026095,120]
[343986226,1733169651116,-2984.29,0.00026095,120]
[343986227,1733169651154,-549.56,0.00026095,120]
[343986228,1733169651192,-3169.39,0.00026095,120]
[343986229,1733169651234,-500.0,0.00026095,120]
[343986230,1733169651273,-2364.04,0.00026095,120]
[343986231,1733169651311,-500.0,0.00026095,120]
[343986232,1733169651350,-937.05,0.00026095,120]
[343986233,1733169651388,-500.0,0.00026095,120]
[343986234,1733169651427,-500.0,0.00026095,120]
[343986235,1733169651466,-500.0,0.00026095,120]
[343986236,1733169651504,-735.72,0.00026095,120]
[343986237,1733169651546,-1649.71,0.00026095,120]
[343986238,1733169651587,-2054.15,0.00026095,120]
[343986239,1733169651625,-2551.68,0.00026095,120]
[343986240,1733169651665,-500.0,0.00026095,120]
[343986241,1733169651704,-500.0,0.00026095,120]
[343986242,1733169651747,-577.19,0.00026095,120]
[343986243,1733169651787,-2269.02,0.00026095,120]
[343986244,1733169651826,-968.38,0.00026095,120]
[343986245,1733169651866,-1061.64,0.00026095,120]
[343986246,1733169651904,-500.0,0.00026095,120]
[343986247,1733169651942,-1237.59,0.00026095,120]
[343986248,1733169652289,-500.0,0.00026095,120]
[343986249,1733169652364,-839.27,0.00026095,120]
[343986250,1733169652403,-2007.31,0.00026095,120]
[343986251,1733169652441,-2274.03,0.00026095,120]
[343986252,1733169652481,-932.09,0.00026095,120]
[343986253,1733169652519,-676.72,0.00026095,120]
[343986254,1733169652559,-500.0,0.00026095,120]
[343986255,1733169652599,-741.16,0.00026095,120]
[343986256,1733169652636,-500.0,0.00026095,120]
[343986257,1733169652675,-500.0,0.00026095,120]
[343986258,1733169652714,-500.0,0.00026095,120]
[343986259,1733169652752,-500.0,0.00026095,120]
[343986260,1733169652789,-500.0,0.00026095,120]
[343986261,1733169652826,-895.0,0.00026095,120]
[343986262,1733169652862,-500.0,0.00026095,120]
[343986263,1733169652899,-2574.94,0.00026095,120]
[343986264,1733169652937,-500.0,0.00026095,120]
[343986265,1733169652974,-1382.67,0.00026095,120]
[343986266,1733169653011,-739.55,0.00026095,60]
[343986267,1733169653049,-500.0,0.00026095,120]
[343986268,1733169653084,-500.0,0.00026095,120]
[343986269,1733169653121,-642.22,0.00026095,120]
[343986270,1733169653157,-3306.2,0.00026095,120]
[343986271,1733169653194,-1132.26,0.00026095,120]
[343986272,1733169653234,-500.0,0.00026095,120]
[343986273,1733169653272,-500.0,0.00026095,120]
[343986274,1733169653310,-500.0,0.00026095,120]
[343986275,1733169653347,-3280.26,0.00026095,120]
[343986276,1733169653391,-748.99,0.00026095,120]
[343986277,1733169653432,-500.0,0.00026095,120]
[343986278,1733169653471,-506.97,0.00026095,120]
[343986279,1733169653510,-169.60946743,0.00026095,120]
[343986280,1733169653551,-1511.73,0.00026095,120]
[343986281,1733169653590,-500.0,0.00026095,120]
[343986282,1733169653627,-869.61,0.00026095,120]
[343986283,1733169653667,-2160.41,0.00026095,120]
[343986284,1733169653705,-500.0,0.00026095,120]
[343986285,1733169653744,-500.0,0.00026095,120]
[343986286,1733169653783,-500.0,0.00026095,120]
[343986287,1733169653820,-3631.48,0.00026095,120]
[343986288,1733169653860,-500.0,0.00026095,120]
[343986289,1733169653898,-742.76,0.00026095,120]
[343986290,1733169653937,-507.83,0.00026095,120]
[343986291,1733169653975,-500.0,0.00026095,120]
[343986292,1733169654015,-2122.98,0.00026095,120]
[343986293,1733169654052,-1844.92,0.00026095,120]
[343986294,1733169654091,-500.0,0.00026095,120]
[343986295,1733169654129,-1933.1,0.00026095,120]
[343986296,1733169654168,-2500.0,0.00026095,120]
[343986297,1733169654208,-1231.15,0.00026095,120]
[343986298,1733169654245,-500.0,0.00026095,120]
[343986299,1733169654284,-300.0,0.00026095,120]
[343986300,1733169654322,-506.92,0.00026095,120]
[343986301,1733169654367,-583.79,0.00026095,120]
[343986302,1733169654406,-1323.96,0.00026095,120]
[343986303,1733169654446,-674.34,0.00026095,120]
[343986304,1733169654487,-500.0,0.00026095,120]
[343986305,1733169654527,-500.0,0.00026095,120]
[343986306,1733169654568,-500.0,0.00026095,120]
[343986307,1733169654609,-2506.27,0.00026095,120]
[343986308,1733169654648,-500.0,0.00026095,120]
[343986309,1733169654688,-656.68,0.00026095,120]
[343986310,1733169654728,-500.0,0.00026095,120]
[343986311,1733169654766,-773.83,0.00026095,120]
[343986312,1733169654805,-337.24796543,0.00026095,120]
[343986313,1733169654850,-500.0,0.00026095,120]
[343986314,1733169654888,-1243.26,0.00026095,120]
[343986315,1733169654926,-500.0,0.00026095,120]
[343986316,1733169654964,-1030.51,0.00026095,120]
[343986317,1733169655003,-1384.95,0.00026095,120]
[343986318,1733169655042,-1013.12,0.00026095,120]
[343986319,1733169655083,-843.35,0.00026095,120]
[343986320,1733169655122,-500.0,0.00026095,120]
[343986321,1733169655161,-3564.37,0.00026095,120]
[343986322,1733169655201,-500.0,0.00026095,120]
[343986323,1733169655242,-2876.71,0.00026095,120]
[343986324,1733169655285,-1145.3,0.00026095,120]
[343986325,1733169655324,-500.0,0.00026095,120]
[343986326,1733169655365,-3061.04,0.00026095,120]
[343986327,1733169655405,-880.09,0.00026095,120]
[343986328,1733169655449,-500.0,0.00026095,120]
[343986329,1733169655493,-500.0,0.00026095,120]
[343986330,1733169655535,-912.74,0.00026095,120]
[343986331,1733169655583,-210.42344852,0.00026095,120]
[343986332,1733169655629,-673.42,0.00026095,120]
[343986333,1733169655671,-1077.65,0.00026095,120]
[343986334,1733169655715,-500.0,0.00026095,120]
[343986335,1733169655757,-660.74,0.00026095,120]
[343986336,1733169655797,-619.73,0.00026095,120]
[343986337,1733169655837,-500.0,0.00026095,120]
[343986338,1733169655876,-328.97923604,0.00026095,120]
[343986339,1733169655914,-1296.37,0.00026095,120]
[343986340,1733169655954,-1749.32,0.00026095,120]
[343986341,1733169655995,-500.0,0.00026095,120]
[343986342,1733169656033,-2629.14,0.00026095,120]
[343986343,1733169656325,-555.24,0.00026095,120]
[343986344,1733169656365,-1495.36,0.00026095,120]
[343986345,1733169656405,-500.0,0.00026095,120]
[343986346,1733169656446,-601.21,0.00026095,120]
[343986347,1733169656487,-1199.44,0.00026095,120]
[343986348,1733169656528,-3065.3,0.00026095,120]
[343986349,1733169656571,-1241.92,0.00026095,120]
[343986350,1733169656619,-6015.4,0.00026095,120]
[343986351,1733169656660,-500.0,0.00026095,120]
[343986352,1733169656700,-1859.06,0.00026095,120]
[343986353,1733169656753,-500.0,0.00026095,120]
[343986354,1733169656794,-500.0,0.00026095,120]
[343986355,1733169656833,-2687.99,0.00026095,120]
[343986356,1733169656873,-500.0,0.00026095,120]
[343986357,1733169656912,-500.0,0.00026095,120]
[343986358,1733169656951,-500.0,0.00026095,120]
[343986359,1733169656991,-1568.09,0.00026095,120]
[343986360,1733169657030,-2514.24,0.00026095,120]
[343986361,1733169657069,-3464.61,0.00026095,120]
[343986362,1733169657111,-500.0,0.00026095,120]
[343986363,1733169657149,-500.0,0.00026095,120]
[343986364,1733169657189,-2460.03,0.00026095,120]
[343986365,1733169657229,-2106.86,0.00026095,120]
[343986366,1733169657269,-735.25,0.00026095,120]
[343986367,1733169657310,-500.0,0.00026095,120]
[343986368,1733169657353,-500.0,0.00026095,120]
[343986369,1733169657395,-532.7,0.00026095,120]
[343986370,1733169657437,-722.79,0.00026095,120]
[343986371,1733169657480,-500.0,0.00026095,120]
[343986372,1733169657520,-1332.55,0.00026095,120]
[343986373,1733169657562,-563.99,0.00026095,120]
[343986374,1733169657606,-500.0,0.00026095,120]
[343986375,1733169657648,-1806.28,0.00026095,120]
[343986376,1733169657687,-2899.78,0.00026095,120]
[343986377,1733169657729,-1779.74,0.00026095,120]
[343986378,1733169657770,-574.61,0.00026095,120]
[343986379,1733169657811,-1203.83,0.00026095,120]
[343986380,1733169657851,-755.11,0.00026095,120]
[343986381,1733169657891,-3535.97,0.00026095,120]
[343986382,1733169657930,-3527.98,0.00026095,120]
[343986383,1733169657970,-500.0,0.00026095,120]
[343986384,1733169658013,-500.0,0.00026095,120]
[343986385,1733169658054,-500.0,0.00026095,120]
[343986386,1733169658093,-605.28,0.00026095,120]